Cogmind - Beta 13 @@@ ROGUE MODE // 2024.04.16 @ 23:11:14 Player: Red_Zig Result: Destroyed by Y-45 Defender with Heavy Assault Rifle Performance ------------- Evolutions (0) 0 Regions Visited (4) 800 Robots Destroyed (31) 155 Value Destroyed (712) 712 Prototype IDs (23) 460 Alien Tech Used (0) 0 Bonus (300) 300 TOTAL SCORE: 2427 Bonus ------- Aligned with FarCom 300 Cogmind --------- Core Integrity 0/250 Matter 153/300 Energy 48/100 System Corruption 1% Temperature Hot (229) Movement Rolling (210) Ox8 Location -9/Mines Parts ------- > --- POWER (1) -------- (None) > --- PROPULSION (2) --- Wheel Compact Wheel > --- UTILITY (2) ------ Humpback > --- WEAPON (2) ------- Firepult > --- INVENTORY (35) --- Ion Engine Light Ion Engine Aluminum Leg Aluminum Leg Aluminum Leg Aluminum Leg Improved Heat Sink Cooling System Large Storage Unit Medium Matter Pod (100) High-capacity Matter Pod (200) Particle Cannon Particle Cannon Particle Cannon Particle Cannon Mini Grenade Launcher Peak State ------------ > --- POWER ------------ Ion Engine > --- PROPULSION ------- Aluminum Leg Aluminum Leg > --- UTILITY ---------- Improved Heat Sink Large Storage Unit > --- WEAPON ----------- Firepult > --- INVENTORY -------- Ion Engine Light Ion Engine Aluminum Leg Aluminum Leg Wheel Compact Wheel Cooling System Medium Matter Pod Particle Cannon Particle Cannon Particle Cannon Particle Cannon [Rating: 28] Favorites ----------- Power Ion Engine Engine Ion Engine Propulsion Aluminum Leg Treads Light Treads Leg Aluminum Leg Wheel Wheel Utility Large Storage Unit Device Improved Heat Sink Storage Large Storage Unit Processor Improved Targeting Computer Protection Light Armor Plating Weapon Particle Cannon Energy Cannon Particle Cannon Ballistic Gun Light Assault Rifle Build | -11 -10 -10 -10 -9 ------- Run | Yrd Mat Min Exi Min Slots Evolved . | . . . . . Power . | . . . . . Propulsion . | . . . . . Utility . | . . . . . Weapon . | . . . . . Parts Attached 22 | 8 6 4 4 . Power 2 | 1 . 1 . . Engine 2 | 1 . 1 . . Core . | . . . . . Reactor . | . . . . . Propulsion 8 | 4 . 2 2 . Treads 2 | 2 . . . . Leg 2 | . . 2 . . Wheel 4 | 2 . . 2 . Hover . | . . . . . Flight . | . . . . . Utility 6 | 1 3 1 1 . Device 1 | . . 1 . . Storage 3 | 1 1 . 1 . Processor 1 | . 1 . . . Hackware . | . . . . . Protection 1 | . 1 . . . Artifact . | . . . . . Weapon 6 | 2 3 . 1 . Energy Gun . | . . . . . Energy Cannon 3 | . 2 . 1 . Ballistic Gun 3 | 2 1 . . . Ballistic Cannon . | . . . . . Launcher . | . . . . . Special Weapon . | . . . . . Impact Weapon . | . . . . . Slashing Weapon . | . . . . . Piercing Weapon . | . . . . . Special Melee Weapon . | . . . . . Unidentified Prototypes . | . . . . . Parts Lost 4 | . 2 2 . . Power . | . . . . . Propulsion 2 | . . 2 . . Utility 1 | . 1 . . . Weapon 1 | . 1 . . . Highest Loss Streak 2 | . 1 2 . . To Critical Strikes . | . . . . . Average Slot Usage (%) 86 | . 89 99 79 64 Engine 13 | . 14 14 14 7 Treads 8 | . 28 8 . . Leg 16 | . . 18 22 . Wheel 3 | . . . 5 28 Device 7 | . . 9 10 . Storage 14 | . 14 14 14 14 Processor 1 | . . 4 . . Energy Cannon 14 | . 2 28 12 14 Ballistic Gun 5 | . 25 . . . Naked Turns . | . . . . . Heaviest Build 227 | 12 33 34 227 227 Greatest Support 40 | 40 40 40 26 26 Greatest Overweight (x) 11 | 1 . 1 11 8 Average Overweight (x) 1 | . . . 3 8 Largest Inventory Capacity 35 | 8 15 15 35 35 Average Capacity 16 | 7 11 15 19 35 Most Carried 16 | 6 9 10 15 16 Average Carried 10 | 4 6 9 12 15 Final Capacity 35 | 8 15 15 35 35 Final Carried 16 | 6 9 10 15 16 Class Distribution -------------------- 86% | Mutant 13% | Hauler-Mutant Dominant Class ---------------- Mutant | -10/Materials Mutant | -10/Mines Mutant | -10/Exiles Hauler-Mutant | -9/Mines Resources | -11 -10 -10 -10 -9 ----------- Run | Yrd Mat Min Exi Min Matter Collected 650 | 227 272 91 25 35 Remotely . | . . . . . Salvage Created 1044 | . 435 349 . 260 Parts 71 | . 29 25 . 17 Haulers Intercepted 1 | . 1 . . . Recyclers Shooed 1 | . 1 . . . Parts Field Recycled . | . . . . . Retrieved Matter . | . . . . . Parts Self-Destructed . | . . . . . Prevented . | . . . . . Kills | -11 -10 -10 -10 -9 ------- Run | Yrd Mat Min Exi Min Combat Hostiles Destroyed 27 | . 10 12 . 5 Guns 10 | . 10 . . . Cannons 12 | . . 12 . . AOE 5 | . . . . 5 Classes Destroyed 6 | . 4 . . 2 Hauler 1 | . 1 . . . Recycler 2 | . . . . 2 Watcher 1 | . 1 . . . Swarmer 13 | . 3 6 . 4 Grunt 13 | . 7 6 . . Sentry 1 | . . . . 1 Best Kill Streak 6 | . 4 3 . 6 Combat Bots Only 5 | . 4 3 . 5 Max Kills in Single Turn 4 | . 1 2 . 4 Gunslinging . | . . . . . Exploded 3 | . . . . 3 Melee . | . . . . . Uniques/NPCs Destroyed . | . . . . . Combat | -11 -10 -10 -10 -9 -------- Run | Yrd Mat Min Exi Min Hostile Shots Fired 126 | . 78 30 . 18 Missed 33 | . 22 8 . 3 Damage Taken 1156 | . 597 301 . 258 Core 258 | . 93 105 . 60 Absorbed by Shields . | . . . . . Core Remaining (%) 100 | 100 . . . . Volleys Fired 76 | . 50 23 . 3 Largest 2 | . 2 2 . 1 Hottest 250 | . 40 136 . 250 Shots Fired 146 | . 99 44 . 3 Gun 99 | . 99 . . . Cannon 47 | . . 44 . 3 Launcher . | . . . . . Special . | . . . . . Kinetic 99 | . 99 . . . Thermal 47 | . . 44 . 3 Explosive . | . . . . . Electromagnetic . | . . . . . Robot Hit Streak 9 | . 9 7 . 6 Robot Miss Streak 5 | . 3 2 . 5 Penetration Max . | . . . . . Secondary Targets 2 | . 2 . . . Max Gunslinging Chain 1 | . 1 . . . Shots Hit Robots 94 | . 64 29 . 1 Core Hits 52 | . 28 15 . 9 Critical Kills . | . . . . . Critical Parts Destroyed 1 | . 1 . . . Critical Strikes 1 | . 1 . . . Destroy 1 | . 1 . . . Melee Attacks . | . . . . . Impact . | . . . . . Slashing . | . . . . . Piercing . | . . . . . Sneak Attacks . | . . . . . Combat Hostiles . | . . . . . Follow-up Attacks . | . . . . . Damage Inflicted 1462 | . 541 636 . 285 Guns 532 | . 532 . . . Cannons 699 | . . 636 . 63 Explosions 222 | . . . . 222 Melee . | . . . . . Ramming 9 | . 9 . . . Kinetic 532 | . 532 . . . Thermal 921 | . . 636 . 285 Explosive . | . . . . . Electromagnetic . | . . . . . Impact . | . . . . . Slashing . | . . . . . Piercing . | . . . . . Highest Corruption 1 | . 1 1 1 1 Average Corruption 1 | . 1 1 1 1 Corruption Purged . | . . . . . Corruption Blocked . | . . . . . Effects 16 | . . 6 9 1 Message Errors 2 | . . . 2 . Matter Fused 4 | . . 3 1 . Heat Flow Errors 4 | . . 1 3 . Energy Discharges 3 | . . 1 2 . Parts Rejected 1 | . . . . 1 Data Loss (minor) 1 | . . . 1 . Alerts 1 | . . 1 . . Overload Shots . | . . . . . Overflow Damage . | . . . . . Projectiles . | . . . . . Explosions . | . . . . . Melee . | . . . . . Knockbacks . | . . . . . Impact . | . . . . . Kinetic . | . . . . . Secondary . | . . . . . Self-Inflicted Damage 31 | . . . . 31 Shots 2 | . . . . 2 Rammed 1 | . 1 . . . Targets Rammed 1 | . 1 . . . Kicked . | . . . . . Crushed . | . . . . . Highest Temperature 517 | . 37 334 245 517 Average Temperature 115 | . 10 131 105 258 Received Heat Transfer 519 | . 282 138 . 99 Effects 6 | . . 3 . 3 Shutdowns 1 | . . 1 . . Interference 2 | . . 2 . . Matter Decay 3 | . . . . 3 Siege Activations . | . . . . . Robots Corrupted . | . . . . . Combat Hostiles . | . . . . . Parts Fried . | . . . . . Impact Corruptions . | . . . . . Robots Melted . | . . . . . Combat Hostiles . | . . . . . Parts Melted 3 | . . . . 3 Heat Transferred 2907 | . . 1147 . 1760 Parts Sabotaged . | . . . . . Parts Stolen . | . . . . . Parts Stripped . | . . . . . Power Chain Reactions . | . . . . . Alert | -11 -10 -10 -10 -9 ------- Run | Yrd Mat Min Exi Min Peak Influence 246 | . 212 246 . 151 Initial 46 | . . 46 . . Average 92 | . 64 125 . 55 Maximum Alert Level 1 | . 1 1 . . Low Security (%) 95 | 100 98 91 . 100 Level 1 4 | . 1 8 . . Level 2 . | . . . . . Level 3 . | . . . . . Level 4 . | . . . . . Level 5 . | . . . . . High Security . | . . . . . Max Security . | . . . . . Squads Dispatched 2 | . 2 . . . Investigation 1 | . 1 . . . Extermination . | . . . . . Reinforcement 1 | . 1 . . . Assault . | . . . . . Garrison . | . . . . . Intercept . | . . . . . Searches Triggered . | . . . . . Construction Impeded . | . . . . . Haulers Reinforced . | . . . . . Active Scanning Responses . | . . . . . Cargo Convoy Interrupts . | . . . . . Stealth | -11 -10 -10 -10 -9 --------- Run | Yrd Mat Min Exi Min Distress Signals 1 | . 1 . . . Communications Jammed . | . . . . . Distress Signals . | . . . . . Times Spotted 34 | . 18 11 . 5 Peak Tracking Total 6 | . 5 3 . 6 Tactical Retreats 2 | . 2 . . . Traps | -11 -10 -10 -10 -9 ------- Run | Yrd Mat Min Exi Min Traps Triggered 2 | . 2 . . . Indirectly . | . . . . . Trap Hack Attempts . | . . . . . Triggered . | . . . . . Disarmed . | . . . . . Reprogrammed . | . . . . . Reused . | . . . . . Traps Extracted . | . . . . . Installed . | . . . . . Triggered . | . . . . . Machines | -11 -10 -10 -10 -9 ---------- Run | Yrd Mat Min Exi Min Machines Disabled 2 | . . . . 2 Max in Single Turn 2 | . . . . 2 Machines Repaired . | . . . . . Machines Dismantled . | . . . . . Machines Sabotaged . | . . . . . Overloaded Fab Kills . | . . . . . Hacking | -11 -10 -10 -10 -9 --------- Run | Yrd Mat Min Exi Min Machines Accessed 3 | . . 1 2 . Terminals 1 | . . 1 . . Fabricators . | . . . . . Repair Stations . | . . . . . Recycling Units . | . . . . . Scanalyzers . | . . . . . Garrison Access . | . . . . . Total Hacks 25 | . . 1 24 . Successful 24 | . . . 24 . Failed 1 | . . 1 . . Catastrophic . | . . . . . Database Lockouts . | . . . . . Manual 1 | . . . 1 . Terminals 1 | . . 1 . . Fabricators . | . . . . . Repair Stations . | . . . . . Recycling Units . | . . . . . Scanalyzers . | . . . . . Garrison Access . | . . . . . Terminal Hacks 24 | . . . 24 . Record 23 | . . . 23 . Derelict Proto ID Bank 1 | . . . 1 . Fabricator Hacks . | . . . . . Repair Station Hacks . | . . . . . Recycling Unit Hacks . | . . . . . Scanalyzer . | . . . . . Garrison Access Hacks . | . . . . . Unauthorized Hacks . | . . . . . Terminals . | . . . . . Fabricators . | . . . . . Repair Stations . | . . . . . Recycling Units . | . . . . . Scanalyzers . | . . . . . Garrison Access . | . . . . . Data Cores Recovered . | . . . . . Used . | . . . . . Hacking Detections 1 | . . 1 . . Full Trace Events . | . . . . . Feedback Events . | . . . . . Feedback Blocked . | . . . . . Robot Schematics Acquired . | . . . . . Robots Built . | . . . . . Authchips . | . . . . . Time . | . . . . . Total Robot Build Rating . | . . . . . Part Schematics Acquired . | . . . . . Parts Built . | . . . . . Authchips . | . . . . . Time . | . . . . . Total Part Build Rating . | . . . . . Parts Repaired . | . . . . . Time . | . . . . . Parts Recycled . | . . . . . Recycled Matter . | . . . . . Retrieved Matter . | . . . . . Retrieved Components . | . . . . . Parts Scanalyzed . | . . . . . Part Schematics Acquired . | . . . . . Parts Damaged . | . . . . . Bothacking | -11 -10 -10 -10 -9 ------------ Run | Yrd Mat Min Exi Min Used RIF Installer . | . . . . . Robots Hacked . | . . . . . Non-combat . | . . . . . Combat . | . . . . . Robot Hacks Applied . | . . . . . Relay Couplers Released . | . . . . . Fabnet Peak Effective % . | . . . . . Robots Rewired . | . . . . . Allies Hacked . | . . . . . Hacks Repelled . | . . . . . Allies | -11 -10 -10 -10 -9 -------- Run | Yrd Mat Min Exi Min Total Allies 2 | . . 2 . . Largest Group 2 | . . 2 2 . Highest-Rated Group 45 | . . 45 45 . Highest-Rated Ally 31 | . . 31 31 . Total Orders . | . . . . . Ally Attacks 3 | . . 3 . . Total Damage 66 | . . 66 . . Kills . | . . . . . Allies Corrupted . | . . . . . Allies Melted . | . . . . . Intel | -11 -10 -10 -10 -9 ------- Run | Yrd Mat Min Exi Min Robot Analysis Total . | . . . . . Derelict Logs Recovered 1 | . . 1 . . Drone Launches . | . . . . . Drone Recoveries . | . . . . . Exploration | -11 -10 -10 -10 -9 ------------- Run | Yrd Mat Min Exi Min Turns Passed 3342 | 81 673 869 1627 92 Spaces Moved 1458 | 48 281 434 654 41 Core 3 | 3 . . . . Treads 448 | 30 281 137 . . Legs 807 | . . 297 510 . Wheels 200 | 15 . . 144 41 Hover . | . . . . . Flight . | . . . . . Fastest Speed 50 | 50 160 160 190 210 Average Speed 204 | 132 160 180 243 210 Slowest Speed 890 | 160 160 190 890 210 Overloaded Moves . | . . . . . Propulsion Burnouts . | . . . . . Robots Hopped . | . . . . . Cave-ins Triggered . | . . . . . Exploration Rate (%) 46 | 5 52 70 90 15 Regions Visited 4 Branch Regions 3 Pre-discovered Areas 2 | . . 1 1 . Known Exits Taken . | . . . . . Unknown Exits Taken 4 | 1 1 1 1 . Scrap Searched 1 | . . 1 . . Spaces Dug . | . . . . . Terrain Destroyed 17 | . . . . 17 Melee . | . . . . . Projectile 1 | . . . . 1 AOE 16 | . . . . 16 Terrain Rammed . | . . . . . Walls Destroyed . | . . . . . Machines Disabled . | . . . . . Actions | -11 -10 -10 -10 -9 --------- Run | Yrd Mat Min Exi Min Total 1693 | 61 424 475 688 45 Wait 108 | . 80 12 16 . Move 1454 | 47 280 433 653 41 Hop . | . . . . . Pick Up 25 | 6 4 3 11 1 Fast Attach 13 | 6 5 . 2 . Attach 3 | . 1 2 . . Detach 3 | . . . 3 . Swap 6 | 2 . 2 2 . Drop 4 | . 3 . 1 . Fire 76 | . 50 23 . 3 Melee . | . . . . . Ram . | . . . . . Kick . | . . . . . Crush 1 | . 1 . . . Escape Stasis . | . . . . . Rewire . | . . . . . Trap . | . . . . . Miscellaneous . | . . . . . Route ------- -11/Scrapyard -10/Materials (discovered 3 exits: [*Mat] / *Min x2) -10/Mines (discovered 3 exits: [*Mat] / *Exi / [*Sub]) -10/Exiles (discovered 2 exits: [*Min x2]) -9/Mines History --------- Turn | Location | Event 13 | -11/Scrapyard | Discovered new exit (range 15) 82 | -11/Scrapyard | Entered Materials 190 | -10/Materials | Discovered new exit (range 16) 318 | -10/Materials | Build established: Mutant 611 | -10/Materials | Discovered new exit (range 13) 692 | -10/Materials | Discovered new exit (range 9) 755 | -10/Materials | Entered Mines 867 | -10/Mines | Core integrity fell below 50% 959 | -10/Mines | Learned location of Storage (-7) 1134 | -10/Mines | Learned 2 Materials zone layouts 1152 | -10/Mines | Discovered new exit (range 6) 1487 | -10/Mines | Discovered new exit (range 6) 1615 | -10/Mines | Deemed a non-threat by the Exiles lab entrance 1615 | -10/Mines | Discovered new exit (range 5) 1624 | -10/Mines | Entered Exiles 1624 | -10/Exiles | Accompanied by 2 allies 1654 | -10/Exiles | Led the pair of lost Derelicts to a safe place 1669 | -10/Exiles | Met 8R-AWN 1721 | -10/Exiles | Met EX-HEX 1773 | -10/Exiles | Met EX-BIN 1795 | -10/Exiles | Aligned with FarCom system 1797 | -10/Exiles | Given EX-Vault access code 1841 | -10/Exiles | Opened EX-Vault 1856 | -10/Exiles | Found Firepult 1912 | -10/Exiles | Warned to stay clear of 0b10 Research branches 1985 | -10/Exiles | Met EX-DEC 2100 | -10/Exiles | Visited The Gauntlet 2401 | -10/Exiles | Learned location of Zion (-6) 2549 | -10/Exiles | Discovered new exit (range 14) 3175 | -10/Exiles | Build established: Hauler-Mutant 3223 | -10/Exiles | Discovered new exit (range 14) 3251 | -10/Exiles | Left Exiles lab with Firepult 3251 | -10/Exiles | Entered Mines 3252 | -9/Mines | Assembled infested the area 3257 | -9/Mines | Assisted by a Guerilla fighting off Assembled 3310 | -9/Mines | Core integrity fell below 20% 3343 | -9/Mines | Destroyed by Y-45 Defender with Heavy Assault Rifle Last Messages --------------- 03314_ K-01 Serf collects debris. 03314_ U-05 Engineer builds a Wall. 03315_ The unstable cave ceiling collapses. 03315_ K-01 Serf collects debris. 03315_ U-05 Engineer lays Concrete. 03317_ K-01 Serf collects debris. 03318_ Overheating: Matter decay (-18). 03318_ U-05 Engineer builds a Wall. 03320_ U-05 Engineer lays Concrete. 03323_ U-05 Engineer builds a Wall. 03323_ K-01 Serf collects debris. 03323_ U-05 Engineer lays Concrete. 03324_ K-01 Serf collects debris. 03325_ U-05 Engineer lays Concrete. 03326_ U-05 Engineer builds a Wall. 03336_ U-05 Engineer lays Concrete. 03340_ Critical hit (Burn: +37). 03340_ U-05 Engineer destroyed. 03341_ U-05 Engineer heat spikes uncontrollably. 03343_ Critical hit (Burn: +37). Map ----- +----------------------------------------------------+ | ????????????????????????????????????????????? | | ????????????????????????????????????????????? | | ????????????????????????????????????????????? | | ????????????????????????????????????????????? | | ????????????????????????????????????????????? | | ????????????????????????????????????????????? | | ??????????????????##########????????????????? | | ??????????????????# #????????????????? | | ??????????????????# """ #????????????????? | | ??????????????????# """ #????????????????? | | ??????????????????# """ #????????????????? | | ??????????????????# #????????????????? | | ??????????????????# #????????????????? | | ??????????????????###### ##### #?????????? | | ???????????????????????# #??????????? | | ??# ???????????????????# ##### #???????????? | | ???# ??????????????????# #??????????????????? | | ?[ # ???????????????## #### #???????????? | | ?[ " =?##???????????# #???????????? | | ![* % # ??????????# ########???????????? | | !! === ########### #??????????????????? | | ! " %*%[ * ## ####???????????????? | | ??#" [ = Y=% ! ;# ####????????????? | | ??????# %*%**%= u ##???????????? | | ??????#### * ##??????????? | | ?????????# #### ##### @ #??????????? | | ?????????# ???## # ### ## ???? | | ?????????# ?????# ####### ##?? ????? | | ?????????#??????# #?????# ###????? ?????? | | ????????????????# #?????# #???????? ???????? | | ???????????????? #?????# $#????????????????? | | ????????????????###?????# #????????????????? | | ????????????????????????# ????????????????? | | ????????????????????????# #????????????????? | | ????????????????????????? #????????????????? | | ????????????????????????? #????????????????? | | ????????????????????????? #????????????????? | | ????????????????????????? #????????????????? | | ????????????????????????? ?????????????????? | | ????????????????????????? ?????????????????? | | ????????????????????????? ?????????????????? | | ????????????????????????????????????????????? | | ????????????????????????????????????????????? | | ????????????????????????????????????????????? | | ????????????????????????????????????????????? | | ????????????????????????????????????????????? | | ????????????????????????????????????????????? | | ????????????????????????????????????????????? | | ????????????????????????????????????????????? | | ????????????????????????????????????????????? | +----------------------------------------------------+ Best States ------------- Heat Dissipation 39 Energy Generation 10 Energy Capacity 250 Matter Stores 300 Matter Capacity 300 Sight Range 16 Terrain Scan Density 10 Armor Coverage 150 Evasion (%) 42 Targeting Accuracy 6 Recoil Reduction 2 Item Schematics ----------------- None Robot Schematics ------------------ None Fabricated ------------ Nothing Alien Tech Used ----------------- None Achievements -------------- None Challenges ------------ None Game ------ Seed HardlightActiveEngine Manual? 0 Play Time 00:19:28 Cumulative 30.9 hours Start 2024.04.16 @ 22:45:40 End 2024.04.16 @ 23:11:14 Sessions 1 Manual Loads 0 Difficulty Rogue Special Mode None Game No. 30 Rogue 18 Adventurer 12 Explorer 0 Win Type - Total 0 Types 0/0/0/0/0/0/0/0/0 Lore% 16 Gallery% 30 Achievement% 24 Wizard Run 0 Options --------- Layout 2 ASCII 0 Keyboard 0 Movement Mouse Keybinds 0 Fullscreen 1 Font 24/Smallcaps Map View 50x44 Zoom Use 0% Tactical HUD 1 Map Filters NONE Filters NONE Steam 1 RUN: 8e90ca92-f038-46c7-9614-7a139d55e8a7